fUSD/lending_fUSD_20240803
["ID","MTS","AMOUNT","RATE_DAILY","PERIOD"]
[334013623,1722679852404,-500.0,0.00017534,2]
[334013624,1722679852413,-500.0,0.00017534,2]
[334013625,1722679852422,-1465.19,0.00017534,2]
[334013626,1722679852431,-500.0,0.00017534,2]
[334013627,1722679852441,-946.14,0.00017534,2]
[334013628,1722679852451,-500.0,0.00017534,2]
[334013629,1722679852460,-500.0,0.00017534,2]
[334013630,1722679852469,-500.0,0.00017534,2]
[334013631,1722679852479,-500.0,0.00017534,2]
[334013632,1722679852488,-500.0,0.00017534,2]
[334013633,1722679852498,-600.86,0.00017534,2]
[334013634,1722679852507,-500.0,0.00017534,2]
[334013635,1722679852516,-500.0,0.00017534,2]
[334013636,1722679852526,-578.27,0.00017534,2]
[334013637,1722679852537,-500.0,0.00017534,2]
[334013638,1722679852547,-500.0,0.00017534,2]
[334013639,1722679852556,-500.0,0.00017534,2]
[334013640,1722679852565,-839.29,0.00017534,2]
[334013641,1722679852575,-979.53,0.00017534,2]
[334013642,1722679852584,-1182.76,0.00017534,2]
[334013643,1722679852593,-500.0,0.00017534,2]
[334013644,1722679852603,-500.0,0.00017534,2]
[334013645,1722679852612,-1041.82,0.00017534,2]
[334013646,1722679852621,-500.0,0.00017534,2]
[334013647,1722679852630,-587.18,0.00017534,2]
[334013648,1722679852640,-505.01,0.00017534,2]
[334013649,1722679852649,-548.04,0.00017534,2]
[334013650,1722679852658,-538.24,0.00017534,2]
[334013651,1722679852667,-2230.61,0.00017534,2]
[334013652,1722679852676,-500.0,0.00017534,2]
[334013653,1722679852686,-500.0,0.00017534,2]
[334013654,1722679852695,-500.0,0.00017534,2]
[334013655,1722679852704,-965.02,0.00017534,2]
[334013656,1722679852712,-500.0,0.00017534,2]
[334013657,1722679852722,-1406.26,0.00017534,2]
[334013658,1722679852731,-932.3,0.00017534,2]
[334013659,1722679852740,-500.0,0.00017534,2]
[334013660,1722679852749,-500.0,0.00017534,2]
[334013661,1722679852758,-500.0,0.00017534,2]
[334013662,1722679852767,-996.2,0.00017534,2]
[334013663,1722679852776,-1149.12,0.00017534,2]
[334013664,1722679852787,-500.0,0.00017534,2]
[334013665,1722679852796,-556.75,0.00017534,2]
[334013666,1722679852887,-500.0,0.00017534,2]
[334013667,1722679852928,-500.0,0.00017534,2]
[334013668,1722679852937,-500.0,0.00017534,2]
[334013669,1722679852947,-500.0,0.00017534,2]
[334013670,1722679852958,-682.35,0.00017534,2]
[334013671,1722679852968,-1039.26,0.00017534,2]
[334013672,1722679852978,-500.0,0.00017534,2]
[334013673,1722679852988,-500.0,0.00017534,2]
[334013674,1722679852998,-670.1,0.00017534,2]
[334013675,1722679853009,-1099.2,0.00017534,2]
[334013676,1722679853018,-500.0,0.00017534,2]
[334013677,1722679853028,-500.0,0.00017534,2]
[334013678,1722679853039,-1762.59,0.00017534,2]
[334013679,1722679853048,-500.0,0.00017534,2]
[334013680,1722679853058,-1538.41,0.00017534,2]
[334013681,1722679853067,-508.97,0.00017534,2]
[334013682,1722679853076,-500.0,0.00017534,2]
[334013683,1722679853085,-524.29,0.00017534,2]
[334013684,1722679853094,-509.71,0.00017534,2]
[334013685,1722679853103,-500.0,0.00017534,2]
[334013686,1722679853113,-500.0,0.00017534,2]
[334013687,1722679853122,-2869.52,0.00017534,2]
[334013688,1722679853132,-962.43,0.00017534,2]
[334013689,1722679853142,-500.0,0.00017534,2]
[334013690,1722679853151,-845.82,0.00017534,2]
[334013691,1722679853161,-799.98,0.00017534,2]
[334013692,1722679853170,-500.0,0.00017534,2]
[334013693,1722679853180,-990.59,0.00017534,2]
[334013694,1722679853189,-500.0,0.00017534,2]
[334013695,1722679853198,-500.0,0.00017534,2]
[334013696,1722679853208,-722.18,0.00017534,2]
[334013697,1722679853217,-946.75,0.00017534,2]
[334013698,1722679853227,-3094.92,0.00017534,2]
[334013699,1722679853236,-1648.87,0.00017534,2]
[334013700,1722679853246,-500.0,0.00017534,2]
[334013701,1722679853256,-500.0,0.00017534,2]
[334013702,1722679853266,-546.6,0.00017534,2]
[334013703,1722679853276,-649.4,0.00017534,2]
[334013704,1722679853287,-756.12,0.00017534,2]
[334013705,1722679853296,-549.28,0.00017534,2]
[334013706,1722679853306,-4776.75,0.00017534,2]
[334013707,1722679853315,-500.0,0.00017534,2]
[334013708,1722679853325,-1739.26,0.00017534,2]
[334013709,1722679853334,-633.04,0.00017534,2]
[334013710,1722679853344,-500.0,0.00017534,2]
[334013711,1722679853354,-894.83,0.00017534,2]
[334013712,1722679853363,-500.0,0.00017534,2]
[334013713,1722679853373,-679.21,0.00017534,2]
[334013714,1722679853382,-500.0,0.00017534,2]
[334013715,1722679853392,-5258.6,0.00017534,2]
[334013716,1722679853402,-1863.79,0.00017534,2]
[334013717,1722679853412,-1520.3,0.00017534,2]
[334013718,1722679853422,-2610.29,0.00017534,2]
[334013719,1722679853432,-794.69,0.00017534,2]
[334013720,1722679853442,-608.3,0.00017534,2]
[334013721,1722679853453,-500.0,0.00017534,2]
[334013722,1722679853464,-1504.27976991,0.00017608,2]
[334013723,1722679853473,-1110.175448,0.00017701,2]
[334013724,1722679853483,-227.83446286,0.00017708,2]
[334013725,1722679853492,-800.0,0.00017797,2]
[334013726,1722679853502,-641.03021452,0.00017799,2]
[334013727,1722679853511,-495.92862891,0.00017805,2]
[334013728,1722679853522,-165.30954297,0.00017805,2]
[334013729,1722679853531,-151.0,0.00017807,2]
[334013730,1722679853541,-1228.92,0.00017807,2]
[334013731,1722679853551,-500.0,0.00017807,2]
[334013732,1722679853561,-500.0,0.00017807,2]
[334013733,1722679853570,-1487.36,0.00017807,2]
[334013734,1722679853580,-586.29,0.00017807,2]
[334013735,1722679853590,-509.23,0.00017807,2]
[334013736,1722679853599,-1514.24,0.00017807,2]
[334013737,1722679853609,-547.25,0.00017807,2]
[334013738,1722679853619,-500.0,0.00017807,2]
[334013739,1722679853628,-632.81,0.00017807,2]
[334013740,1722679853638,-1002.48,0.00017807,2]
[334013741,1722679853649,-500.0,0.00017807,2]
[334013742,1722679853658,-500.0,0.00017807,2]
[334013743,1722679853668,-690.99,0.00017807,2]
[334013744,1722679853678,-1486.0,0.00017807,2]
[334013745,1722679853688,-757.77,0.00017807,2]
[334013746,1722679853707,-1053.29,0.00017807,2]
[334013747,1722679853719,-500.0,0.00017807,2]
[334013748,1722679853731,-500.0,0.00017807,2]
[334013749,1722679853741,-2310.93,0.00017807,2]
[334013750,1722679853752,-983.19590424,0.00017807,7]
[334013751,1722679853769,-981.21781614,0.00017807,7]
[334013752,1722679853782,-1873275.35378304,0.00017807,7]
[334013753,1722679853792,-500.0,0.00017808,2]
[334013754,1722679853802,-500.0,0.00017808,2]
[334013755,1722679853812,-500.0,0.00017808,2]
[334013756,1722679853826,-500.0,0.00017808,2]
[334013757,1722679853836,-500.0,0.00017808,2]
[334013758,1722679853847,-500.0,0.00017808,2]
[334013759,1722679853858,-243.96786238,0.00017808,2]
[334013760,1722679853869,-500.0,0.00017808,2]
[334013761,1722679853879,-500.0,0.00017808,2]
[334013762,1722679853888,-500.0,0.00017808,2]
[334013763,1722679853901,-500.0,0.00017808,2]
[334013764,1722679853911,-500.0,0.00017808,2]
[334013765,1722679853921,-500.0,0.00017808,2]
[334013766,1722679853932,-500.0,0.00017808,2]
[334013767,1722679853942,-497.24147378,0.00017808,2]
[334013768,1722679853952,-500.0,0.00017808,2]
[334013769,1722679853962,-500.0,0.00017808,2]
[334013770,1722679853972,-500.0,0.00017808,2]
[334013771,1722679853981,-500.0,0.00017808,2]
[334013772,1722679853991,-500.0,0.00017808,2]
[334013773,1722679854001,-1038.92,0.00017808,2]
[334013774,1722679854011,-500.0,0.00017808,2]
[334013775,1722679854021,-500.0,0.00017808,2]
[334013776,1722679854032,-500.0,0.00017808,2]
[334013777,1722679854042,-500.0,0.00017808,2]
[334013778,1722679854052,-500.0,0.00017808,2]
[334013779,1722679854062,-500.0,0.00017808,2]
[334013780,1722679854072,-500.0,0.00017808,2]
[334013781,1722679854082,-500.0,0.00017808,2]
[334013782,1722679854091,-551.64,0.00017808,2]
[334013783,1722679854102,-500.0,0.00017808,2]
[334013784,1722679854112,-500.0,0.00017808,2]
[334013785,1722679854121,-500.0,0.00017808,2]
[334013786,1722679854131,-500.0,0.00017808,2]
[334013787,1722679854141,-500.0,0.00017808,2]
[334013788,1722679854150,-1131.87,0.00017808,2]
[334013789,1722679854160,-457.49410689,0.00017808,2]
[334013790,1722679854169,-500.0,0.00017808,2]
[334013791,1722679854178,-500.0,0.00017808,2]
[334013792,1722679854188,-500.0,0.00017808,2]
[334013793,1722679854198,-500.0,0.00017808,2]
[334013794,1722679854208,-500.0,0.00017808,2]
[334013795,1722679854218,-780.23,0.00017808,2]
[334013796,1722679854227,-580.49,0.00017808,2]
[334013797,1722679854237,-500.0,0.00017808,2]
[334013798,1722679854246,-500.0,0.00017808,2]
[334013799,1722679854256,-500.0,0.00017808,2]
[334013800,1722679854266,-500.0,0.00017808,2]
[334013801,1722679854276,-500.0,0.00017808,2]
[334013802,1722679854288,-500.0,0.00017808,2]
[334013803,1722679854298,-500.0,0.00017808,2]
[334013804,1722679854307,-500.0,0.00017808,2]
[334013805,1722679854317,-500.0,0.00017808,2]
[334013806,1722679854326,-316.8145974,0.00017808,2]
[334013807,1722679854336,-500.0,0.00017808,2]
[334013808,1722679854346,-500.0,0.00017808,2]
[334013809,1722679854355,-500.0,0.00017808,2]
[334013810,1722679854365,-500.0,0.00017808,2]
[334013811,1722679854375,-500.0,0.00017808,2]
[334013812,1722679854385,-500.0,0.00017808,2]
[334013813,1722679854395,-500.0,0.00017808,2]
[334013814,1722679854406,-500.0,0.00017808,2]
[334013815,1722679854416,-500.0,0.00017808,2]
[334013816,1722679854426,-500.0,0.00017808,2]
[334013817,1722679854437,-724.65,0.00017808,2]
[334013818,1722679854447,-500.0,0.00017808,2]
[334013819,1722679854458,-500.0,0.00017808,2]
[334013820,1722679854468,-500.0,0.00017808,2]
[334013821,1722679854478,-500.0,0.00017808,2]
[334013822,1722679854488,-500.0,0.00017808,2]
[334013823,1722679854498,-500.0,0.00017808,2]
[334013824,1722679854508,-500.0,0.00017808,2]
[334013825,1722679854518,-500.0,0.00017808,2]
[334013826,1722679854528,-500.0,0.00017808,2]
[334013827,1722679854539,-500.0,0.00017808,2]
[334013828,1722679854549,-500.0,0.00017808,2]
[334013829,1722679854559,-500.0,0.00017808,2]
[334013830,1722679854569,-500.0,0.00017808,2]
[334013831,1722679854579,-500.0,0.00017808,2]
[334013832,1722679854589,-500.0,0.00017808,2]
[334013833,1722679854598,-500.0,0.00017808,2]
[334013834,1722679854608,-500.0,0.00017808,2]
[334013835,1722679854618,-500.0,0.00017808,2]
[334013836,1722679854628,-500.0,0.00017808,2]
[334013837,1722679854638,-169.62,0.00017808,2]
[334013838,1722679854648,-500.0,0.00017808,2]
[334013839,1722679854657,-500.0,0.00017808,2]
[334013840,1722679854667,-500.0,0.00017808,2]
[334013841,1722679854676,-500.0,0.00017808,2]
[334013842,1722679854686,-500.0,0.00017808,2]
[334013843,1722679854696,-500.0,0.00017808,2]
[334013844,1722679854706,-500.0,0.00017808,2]
[334013845,1722679854716,-500.0,0.00017808,2]
[334013846,1722679854725,-500.0,0.00017808,2]
[334013847,1722679854735,-1050.57,0.00017808,2]
[334013848,1722679854745,-500.0,0.00017808,2]
[334013849,1722679854754,-863.18,0.00017808,2]
[334013850,1722679854764,-500.0,0.00017808,2]
[334013851,1722679854773,-500.0,0.00017808,2]
[334013852,1722679854783,-500.0,0.00017808,2]
[334013853,1722679854792,-621.5147109,0.00017808,2]
[334013854,1722679854801,-500.0,0.00017808,2]
[334013855,1722679854810,-500.0,0.00017808,2]
[334013856,1722679854820,-500.0,0.00017808,2]
[334013857,1722679854832,-500.0,0.00017808,2]
[334013858,1722679854842,-351.14204886,0.00017808,2]
[334013859,1722679854851,-500.0,0.00017808,2]
[334013860,1722679854861,-539.35,0.00017808,2]
[334013861,1722679854873,-500.0,0.00017808,2]
[334013862,1722679854883,-500.0,0.00017808,2]
[334013863,1722679854892,-500.0,0.00017808,2]
[334013864,1722679854902,-500.0,0.00017808,2]
[334013865,1722679854912,-500.0,0.00017808,2]
[334013866,1722679854922,-500.0,0.00017808,2]
[334013867,1722679854934,-351.30704216,0.00017808,2]
[334013868,1722679854943,-500.0,0.00017808,2]
[334013869,1722679854955,-500.0,0.00017808,2]
[334013870,1722679854965,-500.0,0.00017808,2]
[334013871,1722679854975,-500.0,0.00017808,2]
[334013872,1722679854986,-700.34,0.00017808,2]
[334013873,1722679854997,-500.0,0.00017808,2]
[334013874,1722679855007,-500.0,0.00017808,2]
[334013875,1722679855018,-500.0,0.00017808,2]
[334013876,1722679855028,-592.7,0.00017808,2]
[334013877,1722679855039,-500.0,0.00017808,2]
[334013878,1722679855048,-500.0,0.00017808,2]
[334013879,1722679855058,-500.0,0.00017808,2]
[334013880,1722679855067,-500.0,0.00017808,2]
[334013881,1722679855077,-500.0,0.00017808,2]
[334013882,1722679855088,-542.41,0.00017808,2]
[334013883,1722679855098,-521.65885775,0.00017808,2]
[334013884,1722679855107,-551.5,0.00017808,2]
[334013885,1722679855117,-500.0,0.00017808,2]
[334013886,1722679855126,-500.0,0.00017808,2]
[334013887,1722679855135,-500.0,0.00017808,2]
[334013888,1722679855145,-2156.49,0.00017808,2]
[334013889,1722679855154,-763.4,0.00017808,2]
[334013890,1722679855164,-500.0,0.00017808,2]
[334013891,1722679855174,-605.34,0.00017808,2]
[334013892,1722679855184,-500.0,0.00017808,2]
[334013893,1722679855193,-2025.66,0.00017808,2]
[334013894,1722679855526,-533.71,0.00017808,2]
[334013895,1722679855539,-500.0,0.00017808,2]
[334013896,1722679855549,-500.0,0.00017808,2]
[334013897,1722679855559,-500.0,0.00017808,2]
[334013898,1722679855568,-248.546662,0.00017808,2]
[334013899,1722679855578,-985.87,0.00017808,2]
[334013900,1722679855587,-1174.52,0.00017808,2]
[334013901,1722679855597,-500.0,0.00017808,2]
[334013902,1722679855607,-207.21419458,0.00017808,2]
[334013903,1722679855616,-500.0,0.00017808,2]
[334013904,1722679855626,-1586.69,0.00017808,2]
[334013905,1722679855636,-830.37,0.00017808,2]
[334013906,1722679855647,-547.0494683,0.00017808,2]
[334013907,1722679855657,-500.0,0.00017808,2]
[334013908,1722679855667,-500.0,0.00017808,2]
[334013909,1722679855677,-500.0,0.00017808,2]
[334013910,1722679855687,-6184.42,0.00017808,2]
[334013911,1722679855696,-715.08,0.00017808,2]
[334013912,1722679855706,-2939.45,0.00017808,2]
[334013913,1722679855716,-500.0,0.00017808,2]
[334013914,1722679855726,-2824.94,0.00017808,2]
[334013915,1722679855735,-728.72,0.00017808,2]
[334013916,1722679855746,-500.0,0.00017808,2]
[334013917,1722679855755,-1733.44,0.00017808,2]
[334013918,1722679855765,-500.0,0.00017808,2]
[334013919,1722679855775,-612.74,0.00017808,2]
[334013920,1722679855784,-500.0,0.00017808,2]
[334013921,1722679855794,-1033.05,0.00017808,2]
[334013922,1722679855803,-2726.97,0.00017808,2]
[334013923,1722679855812,-500.0,0.00017808,2]
[334013924,1722679855825,-674.25,0.00017808,2]
[334013925,1722679855839,-500.0,0.00017808,2]
[334013926,1722679855850,-591.7,0.00017808,2]
[334013927,1722679855860,-500.0,0.00017808,2]
[334013928,1722679855871,-500.0,0.00017808,2]
[334013929,1722679855881,-797.47,0.00017808,2]
[334013930,1722679855890,-2712.22,0.00017808,2]
[334013931,1722679855899,-771.83,0.00017808,2]
[334013932,1722679855910,-500.0,0.00017808,2]
[334013933,1722679855921,-779.95,0.00017808,2]
[334013934,1722679855930,-1649.43,0.00017808,2]
[334013935,1722679855939,-500.0,0.00017808,2]
[334013936,1722679855949,-827.87,0.00017808,2]
[334013937,1722679855958,-500.0,0.00017808,2]
[334013938,1722679855967,-500.0,0.00017808,2]
[334013939,1722679855976,-694.73,0.00017808,2]
[334013940,1722679855986,-500.0,0.00017808,2]
[334013941,1722679855996,-1327.35,0.00017808,2]
[334013942,1722679856005,-1575.91,0.00017808,2]
[334013943,1722679856014,-500.0,0.00017808,2]
[334013944,1722679856024,-550.59,0.00017808,2]
[334013945,1722679856037,-1401.71,0.00017808,2]
[334013946,1722679856049,-500.0,0.00017808,2]
[334013947,1722679856059,-500.0,0.00017808,2]
[334013948,1722679856069,-813.6,0.00017808,2]
[334013949,1722679856078,-695.59,0.00017808,2]
[334013950,1722679856088,-500.0,0.00017808,2]
[334013951,1722679856098,-500.0,0.00017808,2]
[334013952,1722679856107,-500.0,0.00017808,2]
[334013953,1722679856117,-1465.19,0.00017808,2]
[334013954,1722679856127,-395.88220219,0.00017808,2]
[334013955,1722679856136,-946.14,0.00017808,2]
[334013956,1722679856146,-500.0,0.00017808,2]
[334013957,1722679856156,-500.0,0.00017808,2]
[334013958,1722679856165,-500.0,0.00017808,2]
[334013959,1722679856175,-500.0,0.00017808,2]
[334013960,1722679856186,-500.0,0.00017808,2]
[334013961,1722679856196,-600.86,0.00017808,2]
[334013962,1722679856207,-500.0,0.00017808,2]
[334013963,1722679856218,-500.0,0.00017808,2]
[334013964,1722679856227,-578.27,0.00017808,2]
[334013965,1722679856238,-500.0,0.00017808,2]
[334013966,1722679856248,-500.0,0.00017808,2]
[334013967,1722679856258,-500.0,0.00017808,2]
[334013968,1722679856268,-839.29,0.00017808,2]
[334013969,1722679856277,-1182.76,0.00017808,2]
[334013970,1722679856288,-979.53,0.00017808,2]
[334013971,1722679856298,-500.0,0.00017808,2]
[334013972,1722679856308,-500.0,0.00017808,2]
[334013973,1722679856317,-1041.82,0.00017808,2]
[334013974,1722679856327,-500.0,0.00017808,2]
[334013975,1722679856336,-587.18,0.00017808,2]
[334013976,1722679856345,-505.01,0.00017808,2]
[334013977,1722679856357,-538.24,0.00017808,2]
[334013978,1722679856366,-548.04,0.00017808,2]
[334013979,1722679856376,-2230.61,0.00017808,2]
[334013980,1722679856386,-500.0,0.00017808,2]
[334013981,1722679856397,-500.0,0.00017808,2]
[334013982,1722679856407,-500.0,0.00017808,2]
[334013983,1722679856418,-965.02,0.00017808,2]
[334013984,1722679856428,-500.0,0.00017808,2]
[334013985,1722679856438,-1406.26,0.00017808,2]
[334013986,1722679856447,-932.3,0.00017808,2]
[334013987,1722679856457,-500.0,0.00017808,2]
[334013988,1722679856467,-500.0,0.00017808,2]
[334013989,1722679856476,-500.0,0.00017808,2]
[334013990,1722679856486,-996.2,0.00017808,2]
[334013991,1722679856495,-1149.12,0.00017808,2]
[334013992,1722679856505,-500.0,0.00017808,2]
[334013993,1722679856515,-556.75,0.00017808,2]
[334013994,1722679856525,-500.0,0.00017808,2]
[334013995,1722679856537,-500.0,0.00017808,2]
[334013996,1722679856553,-500.0,0.00017808,2]
[334013997,1722679856563,-500.0,0.00017808,2]
[334013998,1722679856572,-682.35,0.00017808,2]
[334013999,1722679856582,-1039.26,0.00017808,2]
[334014000,1722679856591,-500.0,0.00017808,2]
[334014001,1722679856601,-500.0,0.00017808,2]
[334014002,1722679856610,-670.1,0.00017808,2]
[334014003,1722679856620,-1099.2,0.00017808,2]
[334014004,1722679856630,-500.0,0.00017808,2]
[334014005,1722679856640,-500.0,0.00017808,2]
[334014006,1722679856649,-1762.59,0.00017808,2]
[334014007,1722679856659,-644.16929178,0.00017808,2]
[334014008,1722679856669,-1538.41,0.00017808,2]
[334014009,1722679856678,-508.97,0.00017808,2]
[334014010,1722679856688,-500.0,0.00017808,2]
[334014011,1722679856697,-524.29,0.00017808,2]
[334014012,1722679856707,-509.71,0.00017808,2]
[334014013,1722679856716,-500.0,0.00017808,2]
[334014014,1722679856725,-500.0,0.00017808,2]
[334014015,1722679856735,-2869.52,0.00017808,2]
[334014016,1722679856744,-962.43,0.00017808,2]
[334014017,1722679856756,-500.0,0.00017808,2]
[334014018,1722679856765,-845.82,0.00017808,2]
[334014019,1722679856774,-799.98,0.00017808,2]
[334014020,1722679856784,-500.0,0.00017808,2]
[334014021,1722679856794,-990.59,0.00017808,2]
[334014022,1722679856803,-500.0,0.00017808,2]
[334014023,1722679856813,-500.0,0.00017808,2]
[334014024,1722679856828,-722.18,0.00017808,2]
[334014025,1722679856838,-946.75,0.00017808,2]
[334014026,1722679856847,-3094.92,0.00017808,2]
[334014027,1722679856856,-1648.87,0.00017808,2]
[334014028,1722679856866,-500.0,0.00017808,2]
[334014029,1722679856875,-500.0,0.00017808,2]
[334014030,1722679856884,-546.6,0.00017808,2]
[334014031,1722679856894,-649.4,0.00017808,2]
[334014032,1722679856905,-756.12,0.00017808,2]
[334014033,1722679856915,-549.28,0.00017808,2]
[334014034,1722679856924,-4776.75,0.00017808,2]
[334014035,1722679856934,-500.0,0.00017808,2]
[334014036,1722679856943,-1739.26,0.00017808,2]
[334014037,1722679856952,-633.04,0.00017808,2]
[334014038,1722679856962,-500.0,0.00017808,2]
[334014039,1722679856972,-894.83,0.00017808,2]
[334014040,1722679856981,-500.0,0.00017808,2]
[334014041,1722679856991,-679.21,0.00017808,2]
[334014042,1722679857001,-500.0,0.00017808,2]
[334014043,1722679857011,-5258.6,0.00017808,2]
[334014044,1722679857020,-1863.79,0.00017808,2]
[334014045,1722679857030,-1520.3,0.00017808,2]
[334014046,1722679857040,-794.69,0.00017808,2]
[334014047,1722679857050,-2610.29,0.00017808,2]
[334014048,1722679857059,-608.3,0.00017808,2]
[334014049,1722679857068,-500.0,0.00017808,2]
[334014050,1722679857077,-690.0,0.00017808,2]
[334014051,1722679857086,-2122.0,0.00017808,2]
[334014052,1722679857095,-31917.034099,0.00017826,2]
[334014053,1722679857105,-4345.2914332,0.00017826,2]
[334014054,1722679857115,-241.04299152,0.00017864,2]
[334014055,1722679857124,-371.74166536,0.00018,2]
[334014056,1722679857134,-366.63291797,0.00018062,2]
[334014057,1722679857143,-227.60153513,0.00018062,2]
[334014058,1722679857153,-376.85118368,0.00018062,2]
[334014059,1722679857164,-1228.92,0.00018081,2]
[334014060,1722679857173,-500.0,0.00018081,2]
[334014061,1722679857183,-500.0,0.00018081,2]
[334014062,1722679857192,-1487.36,0.00018081,2]
[334014063,1722679857202,-586.29,0.00018081,2]
[334014064,1722679857211,-509.23,0.00018081,2]
[334014065,1722679857221,-1514.24,0.00018081,2]
[334014066,1722679857230,-547.25,0.00018081,2]
[334014067,1722679857239,-500.0,0.00018081,2]
[334014068,1722679857249,-632.81,0.00018081,2]
[334014069,1722679857258,-1002.48,0.00018081,2]
[334014070,1722679857268,-500.0,0.00018081,2]
[334014071,1722679857277,-500.0,0.00018081,2]
[334014072,1722679857287,-690.99,0.00018081,2]
[334014073,1722679857296,-1486.0,0.00018081,2]
[334014074,1722679857306,-757.77,0.00018081,2]
[334014075,1722679857315,-1053.29,0.00018081,2]
[334014076,1722679857324,-500.0,0.00018081,2]
[334014077,1722679857333,-500.0,0.00018081,2]
[334014078,1722679857343,-2310.93,0.00018081,2]
[334014079,1722679857352,-500.0,0.00018082,2]
[334014080,1722679857361,-500.0,0.00018082,2]
[334014081,1722679857371,-500.0,0.00018082,2]
[334014082,1722679857380,-500.0,0.00018082,2]
[334014083,1722679857390,-500.0,0.00018082,2]
[334014084,1722679857399,-500.0,0.00018082,2]
[334014085,1722679857408,-500.0,0.00018082,2]
[334014086,1722679857417,-500.0,0.00018082,2]
[334014087,1722679857427,-500.0,0.00018082,2]
[334014088,1722679857436,-500.0,0.00018082,2]
[334014089,1722679857446,-500.0,0.00018082,2]
[334014090,1722679857456,-500.0,0.00018082,2]
[334014091,1722679857465,-500.0,0.00018082,2]
[334014092,1722679857474,-500.0,0.00018082,2]
[334014093,1722679857483,-500.0,0.00018082,2]
[334014094,1722679857492,-500.0,0.00018082,2]
[334014095,1722679857502,-500.0,0.00018082,2]
[334014096,1722679857511,-500.0,0.00018082,2]
[334014097,1722679857520,-1038.92,0.00018082,2]
[334014098,1722679857529,-500.0,0.00018082,2]
[334014099,1722679857539,-500.0,0.00018082,2]
[334014100,1722679857548,-500.0,0.00018082,2]
[334014101,1722679857558,-500.0,0.00018082,2]
[334014102,1722679857567,-500.0,0.00018082,2]
[334014103,1722679857577,-500.0,0.00018082,2]
[334014104,1722679857586,-500.0,0.00018082,2]
[334014105,1722679857595,-500.0,0.00018082,2]
[334014106,1722679857604,-551.64,0.00018082,2]
[334014107,1722679857614,-500.0,0.00018082,2]
[334014108,1722679857623,-500.0,0.00018082,2]
[334014109,1722679857634,-500.0,0.00018082,2]
[334014110,1722679857644,-500.0,0.00018082,2]
[334014111,1722679857654,-500.0,0.00018082,2]
[334014112,1722679857664,-1131.87,0.00018082,2]
[334014113,1722679857674,-500.0,0.00018082,2]
[334014114,1722679857683,-500.0,0.00018082,2]
[334014115,1722679857693,-500.0,0.00018082,2]
[334014116,1722679857703,-500.0,0.00018082,2]
[334014117,1722679857712,-534.72225975,0.00018082,2]
[334014118,1722679857722,-780.23,0.00018082,2]
[334014119,1722679857731,-580.49,0.00018082,2]
[334014120,1722679857741,-500.0,0.00018082,2]
[334014121,1722679857750,-500.0,0.00018082,2]
[334014122,1722679857759,-500.0,0.00018082,2]